[Event "Late-Titled-Tuesday-Blitz-September-12-2023"]
[Site "Chess.com"]
[Date "2023.09.12"]
[Round "2"]
[White "EnvigadoCity"]
[Black "Dr_crypt"]
[Result "0-1"]
[WhiteElo "1935"]
[BlackElo "2429"]
[TimeControl "180+1"]
[EndTime "14:16:04 PDT"]
[Termination "Dr_crypt won by checkmate"]

1. d4 {[%clk 0:03:00]} 1... d5 {[%clk 0:02:58.7]} 2. c4 {[%clk 0:02:58.8]} 2...
e6 {[%clk 0:02:58.9]} 3. Nc3 {[%clk 0:02:58.2]} 3... a6 {[%clk 0:02:59.2]} 4.
cxd5 {[%clk 0:02:55.3]} 4... exd5 {[%clk 0:02:58.8]} 5. Bf4 {[%clk 0:02:55.9]}
5... Nf6 {[%clk 0:02:56.9]} 6. e3 {[%clk 0:02:56]} 6... Bd6 {[%clk 0:02:56.3]}
7. Bxd6 {[%clk 0:02:55.2]} 7... Qxd6 {[%clk 0:02:56.8]} 8. Qf3 {[%clk
0:02:54.8]} 8... Bg4 {[%clk 0:02:50]} 9. Qg3 {[%clk 0:02:55.1]} 9... Qxg3 {[%clk
0:02:49.6]} 10. hxg3 {[%clk 0:02:54.5]} 10... Bf5 {[%clk 0:02:41.5]} 11. Kd2
{[%clk 0:02:53.3]} 11... Nc6 {[%clk 0:02:38.7]} 12. Bd3 {[%clk 0:02:52.7]} 12...
Ne7 {[%clk 0:02:39.4]} 13. Bxf5 {[%clk 0:02:51.9]} 13... Nxf5 {[%clk 0:02:39.6]}
14. Nh3 {[%clk 0:02:48.2]} 14... c6 {[%clk 0:02:36.5]} 15. a4 {[%clk 0:02:45.8]}
15... Nd6 {[%clk 0:02:31.2]} 16. b3 {[%clk 0:02:42.7]} 16... a5 {[%clk 0:02:31]}
17. Nf4 {[%clk 0:02:36.1]} 17... O-O {[%clk 0:02:11.3]} 18. Nh5 {[%clk
0:02:23.8]} 18... Nfe4+ {[%clk 0:02:00.9]} 19. Nxe4 {[%clk 0:02:21.7]} 19...
Nxe4+ {[%clk 0:02:01.7]} 20. Ke2 {[%clk 0:02:20.3]} 20... Rfe8 {[%clk
0:02:00.5]} 21. f3 {[%clk 0:02:20.3]} 21... Nd6 {[%clk 0:01:58.3]} 22. Nf4
{[%clk 0:02:17.2]} 22... Nf5 {[%clk 0:01:56.5]} 23. Kf2 {[%clk 0:02:07.5]} 23...
Nxe3 {[%clk 0:01:55.9]} 24. g4 {[%clk 0:02:03.2]} 24... Nc2 {[%clk 0:01:52.4]}
25. Rad1 {[%clk 0:02:02.8]} 25... Re7 {[%clk 0:01:44.3]} 26. Nd3 {[%clk
0:01:47.2]} 26... Nxd4 {[%clk 0:01:43.3]} 27. Nc5 {[%clk 0:01:46.2]} 27... Ne6
{[%clk 0:01:39.9]} 28. Nd3 {[%clk 0:01:42.4]} 28... Rae8 {[%clk 0:01:38.1]} 29.
b4 {[%clk 0:01:40.4]} 29... axb4 {[%clk 0:01:36]} 30. Nxb4 {[%clk 0:01:41.3]}
30... Nc5 {[%clk 0:01:33.3]} 31. a5 {[%clk 0:01:41]} 31... Re2+ {[%clk
0:01:31.7]} 32. Kg3 {[%clk 0:01:41.3]} 32... Rb2 {[%clk 0:01:28.2]} 33. Nd3
{[%clk 0:01:39.6]} 33... Nxd3 {[%clk 0:01:27.8]} 34. Rxd3 {[%clk 0:01:40.5]}
34... Ra8 {[%clk 0:01:18.8]} 35. Re1 {[%clk 0:01:38.1]} 35... Kf8 {[%clk
0:01:15]} 36. Rde3 {[%clk 0:01:37.2]} 36... g6 {[%clk 0:01:15]} 37. g5 {[%clk
0:01:33.6]} 37... d4 {[%clk 0:01:02.4]} 38. Re7 {[%clk 0:01:32.9]} 38... Rxa5
{[%clk 0:01:00.4]} 39. f4 {[%clk 0:01:19.6]} 39... Ra3+ {[%clk 0:00:59.2]} 40.
Kh4 {[%clk 0:01:19.1]} 40... Rxg2 {[%clk 0:00:53.4]} 41. f5 {[%clk 0:01:19.6]}
41... gxf5 {[%clk 0:00:51.2]} 42. Rxb7 {[%clk 0:01:19.7]} 42... Rg4+ {[%clk
0:00:50.4]} 43. Kh5 {[%clk 0:01:19.5]} 43... Rh3# {[%clk 0:00:49.7]} 0-1

[Event "Late-Titled-Tuesday-Blitz-September-12-2023"]
[Site "Chess.com"]
[Date "2023.09.12"]
[Round "2"]
[White "ahkashefi2800"]
[Black "MagnusCarlsen"]
[Result "0-1"]
[WhiteElo "2604"]
[BlackElo "3217"]
[TimeControl "180+1"]
[EndTime "14:16:06 PDT"]
[Termination "MagnusCarlsen won on time"]

1. d4 {[%clk 0:02:59.8]} 1... g6 {[%clk 0:02:54.9]} 2. Nf3 {[%clk 0:02:59.9]}
2... Bg7 {[%clk 0:02:55.8]} 3. g3 {[%clk 0:03:00.1]} 3... c5 {[%clk 0:02:54.1]}
4. Bg2 {[%clk 0:02:59.1]} 4... cxd4 {[%clk 0:02:54.4]} 5. Nxd4 {[%clk 0:03:00]}
5... Nc6 {[%clk 0:02:54.8]} 6. Nxc6 {[%clk 0:02:50.2]} 6... bxc6 {[%clk
0:02:54.8]} 7. O-O {[%clk 0:02:50.5]} 7... Rb8 {[%clk 0:02:53.9]} 8. c3 {[%clk
0:02:46.5]} 8... c5 {[%clk 0:02:51.7]} 9. Qc2 {[%clk 0:02:46.3]} 9... Bb7 {[%clk
0:02:51.2]} 10. Bxb7 {[%clk 0:02:43.7]} 10... Rxb7 {[%clk 0:02:52.1]} 11. b3
{[%clk 0:02:43.9]} 11... h5 {[%clk 0:02:51.4]} 12. Bb2 {[%clk 0:02:43.7]} 12...
h4 {[%clk 0:02:51.5]} 13. c4 {[%clk 0:02:42.3]} 13... Kf8 {[%clk 0:02:50.9]} 14.
Nd2 {[%clk 0:02:41.2]} 14... d6 {[%clk 0:02:45.9]} 15. Rad1 {[%clk 0:02:38.7]}
15... Qd7 {[%clk 0:02:44.4]} 16. Bxg7+ {[%clk 0:02:31.3]} 16... Kxg7 {[%clk
0:02:44.3]} 17. Qe4 {[%clk 0:02:26.2]} 17... Nf6 {[%clk 0:02:42.3]} 18. Qg2
{[%clk 0:02:11.6]} 18... hxg3 {[%clk 0:02:42]} 19. hxg3 {[%clk 0:02:09.4]} 19...
a5 {[%clk 0:02:41.7]} 20. Ne4 {[%clk 0:02:05.8]} 20... Nxe4 {[%clk 0:02:41.4]}
21. Qxe4 {[%clk 0:02:05.6]} 21... a4 {[%clk 0:02:41.9]} 22. Rd3 {[%clk
0:02:04.6]} 22... Qh3 {[%clk 0:02:41.5]} 23. Rfd1 {[%clk 0:01:48.9]} 23... Qh2+
{[%clk 0:02:38.8]} 24. Kf1 {[%clk 0:01:48.8]} 24... Qh1+ {[%clk 0:02:39.7]} 25.
Qxh1 {[%clk 0:01:45.2]} 25... Rxh1+ {[%clk 0:02:40.6]} 26. Kg2 {[%clk
0:01:45.3]} 26... Rxd1 {[%clk 0:02:41.5]} 27. Rxd1 {[%clk 0:01:45.7]} 27... axb3
{[%clk 0:02:42.4]} 28. axb3 {[%clk 0:01:45.6]} 28... Rxb3 {[%clk 0:02:43.3]} 29.
Rc1 {[%clk 0:01:42]} 29... f5 {[%clk 0:02:42.8]} 30. e3 {[%clk 0:01:40.6]} 30...
Kf6 {[%clk 0:02:42.4]} 31. Kf3 {[%clk 0:01:39.7]} 31... Rb2 {[%clk 0:02:42.5]}
32. Rc3 {[%clk 0:01:39.8]} 32... g5 {[%clk 0:02:42]} 33. g4 {[%clk 0:01:30.8]}
33... fxg4+ {[%clk 0:02:42.2]} 34. Kg3 {[%clk 0:01:31.1]} 34... Kf5 {[%clk
0:02:42.6]} 35. Rc1 {[%clk 0:01:31.3]} 35... Ke4 {[%clk 0:02:40.4]} 36. Rc3
{[%clk 0:01:31.1]} 36... Ra2 {[%clk 0:02:39.1]} 37. Kg2 {[%clk 0:01:24.6]} 37...
Ra1 {[%clk 0:02:37.3]} 38. Rb3 {[%clk 0:01:05.2]} 38... Rc1 {[%clk 0:02:36]} 39.
Rb7 {[%clk 0:01:04.9]} 39... e6 {[%clk 0:02:36.7]} 40. Rd7 {[%clk 0:00:59.8]}
40... Ke5 {[%clk 0:02:35.3]} 41. Rg7 {[%clk 0:00:57.8]} 41... Rxc4 {[%clk
0:02:34.2]} 42. Rxg5+ {[%clk 0:00:57.8]} 42... Kf6 {[%clk 0:02:34.7]} 43. Rg8
{[%clk 0:00:55.7]} 43... d5 {[%clk 0:02:35.2]} 44. Kf1 {[%clk 0:00:54.9]} 44...
Kf5 {[%clk 0:02:29.9]} 45. Ke2 {[%clk 0:00:53.9]} 45... Rc2+ {[%clk 0:02:29]}
46. Kd3 {[%clk 0:00:53]} 46... Ra2 {[%clk 0:02:29.6]} 47. Rc8 {[%clk 0:00:43.8]}
47... c4+ {[%clk 0:02:29.2]} 48. Kd4 {[%clk 0:00:41.1]} 48... e5+ {[%clk
0:02:24.7]} 49. Kxd5 {[%clk 0:00:38.4]} 49... Rd2+ {[%clk 0:02:25.4]} 50. Kc5
{[%clk 0:00:37]} 50... c3 {[%clk 0:02:26.3]} 51. Kb4 {[%clk 0:00:37.3]} 51... c2
{[%clk 0:02:26.3]} 52. Kb3 {[%clk 0:00:35.6]} 52... Rxf2 {[%clk 0:02:27]} 53.
Kb2 {[%clk 0:00:35.8]} 53... g3 {[%clk 0:02:27.1]} 54. Rg8 {[%clk 0:00:28]}
54... g2 {[%clk 0:02:27]} 55. Rf8+ {[%clk 0:00:23]} 55... Ke4 {[%clk 0:02:27]}
56. Rxf2 {[%clk 0:00:23.1]} 56... c1=Q+ {[%clk 0:02:27.6]} 0-1

[Event "Late-Titled-Tuesday-Blitz-September-12-2023"]
[Site "Chess.com"]
[Date "2023.09.12"]
[Round "2"]
[White "ArtemDyachuk"]
[Black "rasmussvane"]
[Result "0-1"]
[WhiteElo "2539"]
[BlackElo "2986"]
[TimeControl "180+1"]
[EndTime "14:16:10 PDT"]
[Termination "rasmussvane won on time"]

1. e4 {[%clk 0:03:00.9]} 1... c6 {[%clk 0:03:00]} 2. d4 {[%clk 0:03:00.2]} 2...
d5 {[%clk 0:03:00.9]} 3. e5 {[%clk 0:03:00.6]} 3... Bf5 {[%clk 0:03:00.9]} 4.
Nf3 {[%clk 0:02:59.7]} 4... e6 {[%clk 0:03:01]} 5. Be2 {[%clk 0:02:59.3]} 5...
Ne7 {[%clk 0:03:00.5]} 6. O-O {[%clk 0:02:57.8]} 6... Ng6 {[%clk 0:03:00.8]} 7.
Be3 {[%clk 0:02:56.1]} 7... Nd7 {[%clk 0:03:00.3]} 8. Re1 {[%clk 0:02:44.7]}
8... f6 {[%clk 0:02:56.4]} 9. exf6 {[%clk 0:02:41.2]} 9... Qxf6 {[%clk
0:02:57.3]} 10. Nbd2 {[%clk 0:02:29.1]} 10... Bd6 {[%clk 0:02:56.1]} 11. Nf1
{[%clk 0:02:26.2]} 11... O-O {[%clk 0:02:54.1]} 12. Ng3 {[%clk 0:02:21.2]} 12...
e5 {[%clk 0:01:45.7]} 13. dxe5 {[%clk 0:01:07]} 13... Ndxe5 {[%clk 0:01:45.2]}
14. c4 {[%clk 0:01:07.5]} 14... Bb4 {[%clk 0:01:33.3]} 15. Rf1 {[%clk
0:00:58.1]} 15... Nxc4 {[%clk 0:01:24.7]} 16. Bxc4 {[%clk 0:00:46.1]} 16... dxc4
{[%clk 0:01:25.6]} 17. Qa4 {[%clk 0:00:45.1]} 17... a5 {[%clk 0:01:21.9]} 18.
Bd4 {[%clk 0:00:24.6]} 18... Qf7 {[%clk 0:01:18]} 19. Nh5 {[%clk 0:00:13.6]}
19... Bg4 {[%clk 0:01:05.6]} 20. Nxg7 {[%clk 0:00:05.5]} 20... Bxf3 {[%clk
0:01:05.4]} 21. gxf3 {[%clk 0:00:06.4]} 21... Nh4 {[%clk 0:00:55]} 0-1

[Event "Late-Titled-Tuesday-Blitz-September-12-2023"]
[Site "Chess.com"]
[Date "2023.09.12"]
[Round "2"]
[White "Mbneu"]
[Black "jk13"]
[Result "0-1"]
[WhiteElo "2298"]
[BlackElo "2678"]
[TimeControl "180+1"]
[EndTime "14:16:12 PDT"]
[Termination "jk13 won by resignation"]

1. d4 {[%clk 0:02:55.1]} 1... Nf6 {[%clk 0:03:00.1]} 2. c4 {[%clk 0:02:55.3]}
2... e6 {[%clk 0:03:00.8]} 3. Nc3 {[%clk 0:02:54.6]} 3... Bb4 {[%clk 0:03:01.3]}
4. Bg5 {[%clk 0:02:54.7]} 4... c5 {[%clk 0:03:01]} 5. d5 {[%clk 0:02:53.5]} 5...
exd5 {[%clk 0:03:01.9]} 6. cxd5 {[%clk 0:02:53.9]} 6... d6 {[%clk 0:03:02.2]} 7.
e3 {[%clk 0:02:54.2]} 7... Nbd7 {[%clk 0:03:02.2]} 8. Bd3 {[%clk 0:02:54.1]}
8... Qa5 {[%clk 0:02:56]} 9. Ne2 {[%clk 0:02:51.5]} 9... Nxd5 {[%clk 0:02:44.5]}
10. O-O {[%clk 0:02:49.7]} 10... Bxc3 {[%clk 0:02:41.3]} 11. bxc3 {[%clk
0:02:48.8]} 11... c4 {[%clk 0:02:37.1]} 12. Bxc4 {[%clk 0:02:33.2]} 12... N5b6
{[%clk 0:02:37.4]} 13. Bxf7+ {[%clk 0:02:12.2]} 13... Kxf7 {[%clk 0:02:38.3]}
14. Bf4 {[%clk 0:02:07.6]} 14... d5 {[%clk 0:02:35]} 15. Nd4 {[%clk 0:02:00.8]}
15... Nf6 {[%clk 0:02:32]} 16. Be5 {[%clk 0:02:00.2]} 16... Nbd7 {[%clk
0:02:30]} 17. f4 {[%clk 0:01:58.7]} 17... Re8 {[%clk 0:02:30.5]} 18. Qd3 {[%clk
0:01:48.3]} 18... Kg8 {[%clk 0:02:25.3]} 19. Nf3 {[%clk 0:01:41.9]} 19... Nxe5
{[%clk 0:02:13.1]} 20. Nxe5 {[%clk 0:01:41]} 20... Be6 {[%clk 0:02:09.9]} 21.
Rab1 {[%clk 0:01:37.1]} 21... b6 {[%clk 0:02:06.9]} 22. h3 {[%clk 0:01:29.4]}
22... Rac8 {[%clk 0:02:05.5]} 23. Rbc1 {[%clk 0:01:24.2]} 23... Rc5 {[%clk
0:01:55.8]} 24. g4 {[%clk 0:01:23]} 24... Rec8 {[%clk 0:01:54.1]} 25. g5 {[%clk
0:01:20.6]} 25... Rxc3 {[%clk 0:01:41.9]} 26. Rxc3 {[%clk 0:01:20]} 26... Qxc3
{[%clk 0:01:41]} 27. Qxc3 {[%clk 0:01:19.8]} 27... Rxc3 {[%clk 0:01:41.9]} 28.
gxf6 {[%clk 0:01:20]} 28... gxf6 {[%clk 0:01:42.6]} 29. Nf3 {[%clk 0:01:11.9]}
29... Rxe3 {[%clk 0:01:38.2]} 30. Kf2 {[%clk 0:01:11.5]} 30... Ra3 {[%clk
0:01:34.3]} 31. h4 {[%clk 0:01:09.8]} 31... Rxa2+ {[%clk 0:01:33.2]} 32. Kg3
{[%clk 0:01:09.9]} 32... Ra3 {[%clk 0:01:31.9]} 33. Rc1 {[%clk 0:01:05.7]} 33...
Bf5 {[%clk 0:01:22.3]} 34. Kf2 {[%clk 0:00:57.8]} 34... Ra2+ {[%clk 0:01:18.8]}
35. Kg3 {[%clk 0:00:54]} 35... Rc2 {[%clk 0:01:14.9]} 36. Ra1 {[%clk 0:00:48.8]}
36... Rc3 {[%clk 0:01:08.5]} 37. Kf2 {[%clk 0:00:46.8]} 37... a5 {[%clk
0:01:08.6]} 38. Nd4 {[%clk 0:00:46.1]} 38... Be4 {[%clk 0:01:07]} 39. Ne6 {[%clk
0:00:43.7]} 39... Kf7 {[%clk 0:01:04.3]} 40. Nd8+ {[%clk 0:00:41.9]} 40... Ke7
{[%clk 0:01:01.9]} 41. Nb7 {[%clk 0:00:40.2]} 41... Rc7 {[%clk 0:00:59.3]} 0-1

[Event "Late-Titled-Tuesday-Blitz-September-12-2023"]
[Site "Chess.com"]
[Date "2023.09.12"]
[Round "2"]
[White "zajka-molotok"]
[Black "dretch"]
[Result "0-1"]
[WhiteElo "2513"]
[BlackElo "2858"]
[TimeControl "180+1"]
[EndTime "14:16:21 PDT"]
[Termination "dretch won by resignation"]

1. e4 {[%clk 0:03:00.1]} 1... e6 {[%clk 0:03:00]} 2. d4 {[%clk 0:02:59.1]} 2...
d5 {[%clk 0:03:00.4]} 3. e5 {[%clk 0:02:59.5]} 3... c5 {[%clk 0:03:00.7]} 4. c3
{[%clk 0:02:59.6]} 4... Nc6 {[%clk 0:03:01.2]} 5. Nf3 {[%clk 0:02:59.6]} 5...
Bd7 {[%clk 0:03:01.6]} 6. Be2 {[%clk 0:02:56.4]} 6... f6 {[%clk 0:03:00.6]} 7.
O-O {[%clk 0:02:37]} 7... Qc7 {[%clk 0:02:56.1]} 8. c4 {[%clk 0:02:35.8]} 8...
dxc4 {[%clk 0:02:50.9]} 9. Bxc4 {[%clk 0:02:36.7]} 9... cxd4 {[%clk 0:02:47.4]}
10. exf6 {[%clk 0:02:32.4]} 10... Nxf6 {[%clk 0:02:46.9]} 11. Nxd4 {[%clk
0:02:30.5]} 11... Nxd4 {[%clk 0:02:41.9]} 12. Qxd4 {[%clk 0:02:29.6]} 12... Bd6
{[%clk 0:02:42.5]} 13. h3 {[%clk 0:02:15.5]} 13... O-O {[%clk 0:02:39.6]} 14.
Nc3 {[%clk 0:02:06.8]} 14... Kh8 {[%clk 0:02:17.3]} 15. Nb5 {[%clk 0:01:55.5]}
15... Bxb5 {[%clk 0:02:15.9]} 16. Bxb5 {[%clk 0:01:56.4]} 16... Bc5 {[%clk
0:02:12.5]} 17. Qh4 {[%clk 0:01:50.5]} 17... Qe5 {[%clk 0:02:08.7]} 18. Bd3
{[%clk 0:01:28.2]} 18... Rad8 {[%clk 0:02:01.7]} 19. Bf4 {[%clk 0:01:27.4]}
19... Qxb2 {[%clk 0:01:48.2]} 20. Bc4 {[%clk 0:01:15.5]} 20... Rd4 {[%clk
0:01:34.3]} 21. Bxe6 {[%clk 0:01:10]} 21... Nd5 {[%clk 0:01:03.8]} 22. Bxd5
{[%clk 0:00:45.5]} 22... Rdxf4 {[%clk 0:01:00.9]} 23. Qh5 {[%clk 0:00:35.3]}
23... Rxf2 {[%clk 0:00:56.4]} 24. Kh2 {[%clk 0:00:19.6]} 24... Bd6+ {[%clk
0:00:46.5]} 25. Kg1 {[%clk 0:00:16.6]} 25... Rxf1+ {[%clk 0:00:44.5]} 26. Rxf1
{[%clk 0:00:15.7]} 26... Qb6+ {[%clk 0:00:43.4]} 0-1

[Event "Late-Titled-Tuesday-Blitz-September-12-2023"]
[Site "Chess.com"]
[Date "2023.09.12"]
[Round "2"]
[White "djano"]
[Black "KamlaPasand"]
[Result "1-0"]
[WhiteElo "2661"]
[BlackElo "2295"]
[TimeControl "180+1"]
[EndTime "14:16:23 PDT"]
[Termination "djano won by checkmate"]

1. e4 {[%clk 0:03:00.9]} 1... e5 {[%clk 0:02:59.7]} 2. Nf3 {[%clk 0:03:00.1]}
2... Nc6 {[%clk 0:02:58.2]} 3. d4 {[%clk 0:03:00.7]} 3... exd4 {[%clk 0:02:58]}
4. Nxd4 {[%clk 0:03:01.6]} 4... Bc5 {[%clk 0:02:58]} 5. Nb3 {[%clk 0:03:01.1]}
5... Bb6 {[%clk 0:02:58.3]} 6. Nc3 {[%clk 0:03:01.7]} 6... Nf6 {[%clk
0:02:57.7]} 7. Bg5 {[%clk 0:02:56.7]} 7... h6 {[%clk 0:02:56.6]} 8. Bh4 {[%clk
0:02:53.5]} 8... d6 {[%clk 0:02:56.3]} 9. Qe2 {[%clk 0:02:49]} 9... g5 {[%clk
0:02:53.4]} 10. Bg3 {[%clk 0:02:48.7]} 10... Be6 {[%clk 0:02:49.9]} 11. O-O-O
{[%clk 0:02:45.8]} 11... a5 {[%clk 0:02:41]} 12. Nd5 {[%clk 0:02:36.5]} 12... a4
{[%clk 0:02:39.6]} 13. Nd2 {[%clk 0:02:23.8]} 13... Nd4 {[%clk 0:02:33.6]} 14.
Qe1 {[%clk 0:02:13.2]} 14... Bc5 {[%clk 0:02:25]} 15. Nf3 {[%clk 0:02:07.3]}
15... Nxf3 {[%clk 0:02:23.8]} 16. gxf3 {[%clk 0:02:08.2]} 16... a3 {[%clk
0:02:23.4]} 17. b3 {[%clk 0:02:03.2]} 17... Nxd5 {[%clk 0:02:19.4]} 18. exd5
{[%clk 0:02:02.1]} 18... Qf6 {[%clk 0:02:19.9]} 19. c3 {[%clk 0:01:56.5]} 19...
Bb4 {[%clk 0:02:12.9]} 20. dxe6 {[%clk 0:01:48.4]} 20... Bxc3 {[%clk 0:02:12.6]}
21. exf7+ {[%clk 0:01:35.6]} 21... Kf8 {[%clk 0:01:51.9]} 22. Qe2 {[%clk
0:01:28.2]} 22... Kxf7 {[%clk 0:01:22.7]} 23. Qc4+ {[%clk 0:01:21.1]} 23... Kg7
{[%clk 0:01:22.4]} 24. Qxc7+ {[%clk 0:01:19.2]} 24... Kg6 {[%clk 0:01:17.7]} 25.
Bd3+ {[%clk 0:01:13.5]} 25... Kh5 {[%clk 0:01:18]} 26. h4 {[%clk 0:00:56.5]}
26... g4 {[%clk 0:01:00.8]} 27. fxg4+ {[%clk 0:00:56]} 27... Kxg4 {[%clk
0:01:01.7]} 28. Be2+ {[%clk 0:00:48.6]} 28... Kf5 {[%clk 0:01:00.1]} 29. Qd7+
{[%clk 0:00:40.6]} 29... Kg6 {[%clk 0:00:59.2]} 30. h5+ {[%clk 0:00:37.7]} 30...
Kg5 {[%clk 0:00:57.3]} 31. f4+ {[%clk 0:00:34.9]} 31... Qxf4+ {[%clk 0:00:54.8]}
32. Bxf4+ {[%clk 0:00:35]} 32... Kxf4 {[%clk 0:00:55.7]} 33. Rdf1+ {[%clk
0:00:35.1]} 33... Ke3 {[%clk 0:00:54.8]} 34. Qb5 {[%clk 0:00:27.3]} 34... Bd2+
{[%clk 0:00:52.2]} 35. Kd1 {[%clk 0:00:27.7]} 35... Rac8 {[%clk 0:00:51]} 36.
Qd3# {[%clk 0:00:27.3]} 1-0

[Event "Late-Titled-Tuesday-Blitz-September-12-2023"]
[Site "Chess.com"]
[Date "2023.09.12"]
[Round "2"]
[White "IMSlavin"]
[Black "seramoral"]
[Result "1/2-1/2"]
[WhiteElo "2222"]
[BlackElo "2618"]
[TimeControl "180+1"]
[EndTime "14:16:23 PDT"]
[Termination "Game drawn by agreement"]

1. e4 {[%clk 0:02:59.3]} 1... c5 {[%clk 0:03:00.1]} 2. g3 {[%clk 0:02:59.3]}
2... d5 {[%clk 0:02:54.4]} 3. exd5 {[%clk 0:02:58.8]} 3... Qxd5 {[%clk
0:02:53.4]} 4. Qf3 {[%clk 0:02:59.5]} 4... Qxf3 {[%clk 0:02:49.1]} 5. Nxf3
{[%clk 0:03:00.2]} 5... Nc6 {[%clk 0:02:45.6]} 6. a3 {[%clk 0:02:59.7]} 6... Nf6
{[%clk 0:02:40.7]} 7. Nc3 {[%clk 0:02:58.6]} 7... Bg4 {[%clk 0:02:39.9]} 8. Bg2
{[%clk 0:02:57.5]} 8... O-O-O {[%clk 0:02:33.9]} 9. d3 {[%clk 0:02:56.9]} 9...
h6 {[%clk 0:02:31.2]} 10. h3 {[%clk 0:02:56.5]} 10... Bxf3 {[%clk 0:02:26]} 11.
Bxf3 {[%clk 0:02:56.2]} 11... Nd4 {[%clk 0:02:26.7]} 12. Bd1 {[%clk 0:02:55.2]}
12... e6 {[%clk 0:02:24.4]} 13. Ne2 {[%clk 0:02:30]} 13... Kb8 {[%clk
0:02:17.5]} 14. Nxd4 {[%clk 0:02:18.2]} 14... cxd4 {[%clk 0:02:16.9]} 15. O-O
{[%clk 0:02:11.3]} 15... Bd6 {[%clk 0:02:12.9]} 16. Re1 {[%clk 0:02:08.8]} 16...
Rc8 {[%clk 0:02:03.2]} 17. Kg2 {[%clk 0:01:58]} 17... Rc7 {[%clk 0:01:58.9]} 18.
Bd2 {[%clk 0:01:38.3]} 18... Rhc8 {[%clk 0:01:53.3]} 19. c4 {[%clk 0:01:34]}
19... dxc3 {[%clk 0:01:50.7]} 20. bxc3 {[%clk 0:01:34.1]} 20... Rxc3 {[%clk
0:01:42.3]} 21. Bxc3 {[%clk 0:01:33.6]} 21... Rxc3 {[%clk 0:01:43]} 22. a4
{[%clk 0:01:27.1]} 22... Rxd3 {[%clk 0:01:40.7]} 23. Bf3 {[%clk 0:01:23]} 23...
b6 {[%clk 0:01:37.6]} 24. Red1 {[%clk 0:01:23]} 24... Rxd1 {[%clk 0:01:36.2]}
25. Rxd1 {[%clk 0:01:22.6]} 25... Kc7 {[%clk 0:01:31.2]} 26. Kf1 {[%clk
0:01:19.6]} 26... Bc5 {[%clk 0:01:20.7]} 27. Ke2 {[%clk 0:01:19.6]} 27... Nd7
{[%clk 0:01:13.9]} 28. Bh5 {[%clk 0:01:11.9]} 28... g6 {[%clk 0:01:11]} 29. Bf3
{[%clk 0:01:10.9]} 29... Bd6 {[%clk 0:01:10.9]} 30. Rc1+ {[%clk 0:01:06.5]}
30... Nc5 {[%clk 0:01:10]} 31. Rc4 {[%clk 0:01:02.2]} 31... Kd7 {[%clk
0:01:06.5]} 32. Bg2 {[%clk 0:01:02.1]} 32... h5 {[%clk 0:00:59.9]} 33. Ba8
{[%clk 0:00:57.1]} 33... a5 {[%clk 0:00:54.8]} 34. Bg2 {[%clk 0:00:55.5]} 34...
Na6 {[%clk 0:00:53.8]} 35. Bc6+ {[%clk 0:00:53.3]} 35... Ke7 {[%clk 0:00:52.1]}
36. Bb5 {[%clk 0:00:52.9]} 36... Nc5 {[%clk 0:00:51.1]} 37. Rc2 {[%clk
0:00:44.5]} 1/2-1/2

[Event "Late-Titled-Tuesday-Blitz-September-12-2023"]
[Site "Chess.com"]
[Date "2023.09.12"]
[Round "2"]
[White "ManuMunoz01"]
[Black "Mackster23"]
[Result "0-1"]
[WhiteElo "2252"]
[BlackElo "2545"]
[TimeControl "180+1"]
[EndTime "14:16:29 PDT"]
[Termination "Mackster23 won by resignation"]

1. e4 {[%clk 0:02:53.4]} 1... c5 {[%clk 0:02:59.8]} 2. Nf3 {[%clk 0:02:53.5]}
2... e6 {[%clk 0:02:59.8]} 3. d4 {[%clk 0:02:53.7]} 3... cxd4 {[%clk 0:03:00.7]}
4. Nxd4 {[%clk 0:02:54.5]} 4... Nc6 {[%clk 0:02:59.9]} 5. Nb5 {[%clk 0:02:51.5]}
5... d6 {[%clk 0:02:51.4]} 6. c4 {[%clk 0:02:46.8]} 6... a6 {[%clk 0:02:49.5]}
7. N5c3 {[%clk 0:02:46.6]} 7... Nf6 {[%clk 0:02:42]} 8. Be3 {[%clk 0:02:27.8]}
8... Be7 {[%clk 0:02:39.4]} 9. Nd2 {[%clk 0:02:27.7]} 9... O-O {[%clk
0:02:32.7]} 10. Be2 {[%clk 0:02:27.6]} 10... d5 {[%clk 0:02:24.2]} 11. cxd5
{[%clk 0:02:12.1]} 11... exd5 {[%clk 0:02:25.1]} 12. exd5 {[%clk 0:02:12.2]}
12... Nxd5 {[%clk 0:02:25.7]} 13. Nxd5 {[%clk 0:02:12.4]} 13... Qxd5 {[%clk
0:02:26.6]} 14. Bf3 {[%clk 0:02:12.7]} 14... Qb5 {[%clk 0:02:24]} 15. Qb3 {[%clk
0:02:10.4]} 15... Be6 {[%clk 0:02:14.3]} 16. Qxb5 {[%clk 0:01:46.7]} 16... axb5
{[%clk 0:02:15.2]} 17. O-O {[%clk 0:01:38.6]} 17... Bf6 {[%clk 0:02:04.6]} 18.
a3 {[%clk 0:01:21.9]} 18... Ra5 {[%clk 0:01:01.9]} 19. Nb3 {[%clk 0:01:04.7]}
19... Bxb3 {[%clk 0:01:00.5]} 20. Rac1 {[%clk 0:00:58.4]} 20... Bc4 {[%clk
0:00:54.7]} 21. Rfd1 {[%clk 0:00:48.7]} 21... Bxb2 {[%clk 0:00:52.4]} 22. Rb1
{[%clk 0:00:48.8]} 22... Bxa3 {[%clk 0:00:51.1]} 23. Rd7 {[%clk 0:00:48.6]}
23... Ne5 {[%clk 0:00:49.7]} 24. Rxb7 {[%clk 0:00:44.4]} 24... Nxf3+ {[%clk
0:00:48.7]} 25. gxf3 {[%clk 0:00:45.3]} 25... b4 {[%clk 0:00:44.3]} 26. Bd4
{[%clk 0:00:40.6]} 26... Bd5 {[%clk 0:00:41.3]} 27. Rd7 {[%clk 0:00:36.7]} 27...
Bxf3 {[%clk 0:00:37]} 28. Rb3 {[%clk 0:00:36.5]} 28... Rd5 {[%clk 0:00:30.2]}
0-1